bitfinex/quotes_SOLUSD_20220226
["timestamp","ask_amount","ask_price","bid_price","bid_amount"]
[1645892643883,1.46137978,91.486,91.412,53.12101208]
[1645892651192,1.46137978,91.486,91.411,22.9264]
[1645892652399,16.4146,91.48,91.411,22.9264]
[1645892652597,1.38846413,91.479,91.411,22.9264]
[1645892653011,24.8143,91.478,91.411,22.9264]
[1645892653211,1.82844388,91.477,91.411,22.9264]
[1645892657215,1.82844388,91.477,91.412,109.4]
[1645892657421,53.35284795,91.487,91.42,125.8106]
[1645892657614,53.35284795,91.487,91.421,29.44634545]
[1645892657816,53.35284795,91.487,91.422,109.4]
[1645892658216,53.35284795,91.487,91.424,109.4]
[1645892659020,53.35284795,91.487,91.43,125.8089]
[1645892659618,53.35284795,91.487,91.43,132.3689]
[1645892659819,53.35284795,91.487,91.431,2.74678921]
[1645892660022,53.35284795,91.487,91.44,125.8067]
[1645892663521,53.35284795,91.487,91.44,16.4067]
[1645892669331,53.35284795,91.487,91.441,23.2137]
[1645892678544,53.35284795,91.487,91.442,109.4]
[1645892681565,53.35284795,91.487,91.441,23.2137]
[1645892684469,1.54716183,91.486,91.433,0.68155699]
[1645892684668,34.99916183,91.486,91.433,0.68155699]
[1645892687982,1.71626676,91.485,91.433,0.68155699]
[1645892688778,33.452,91.486,91.433,0.68155699]
[1645892688779,1.55275476,91.479,91.433,0.68155699]
[1645892694487,16.4162,91.47,91.433,0.68155699]
[1645892694688,24.50191433,91.469,91.433,0.68155699]
[1645892694888,1.38398992,91.468,91.433,0.68155699]
[1645892700495,1.38398992,91.468,91.391,4.374]
[1645892700695,16.4182,91.46,91.391,4.374]
[1645892700901,1.65636818,91.459,91.391,4.374]
[1645892701297,23.5956,91.458,91.391,4.374]
[1645892701495,20.79888645,91.457,91.391,4.374]
[1645892701695,1.76369793,91.456,91.391,4.374]
[1645892702595,1.87463801,91.449,91.391,4.374]
[1645892703597,19.22876043,91.457,91.391,4.374]
[1645892703598,1.5301019,91.456,91.391,4.374]
[1645892703797,19.22876043,91.457,91.391,4.374]
[1645892703798,1.64318786,91.439,91.391,4.374]
[1645892704199,1.64318786,91.439,91.381,23.7217]
[1645892704396,27.11482573,91.437,91.361,22.7673]
[1645892704596,67.17312447,91.436,91.331,50.13250425]
[1645892704797,81.9734,91.43,91.338,2.74678921]
[1645892704995,1.65324863,91.429,91.338,2.74678921]
[1645892705197,1.65324863,91.429,91.34,15.77]
[1645892705396,1.5509441,91.427,91.34,15.77]
[1645892706499,1.5509441,91.427,91.35,16.4234]
[1645892706700,1.5509441,91.427,91.351,23.5883]
[1645892708304,4.376,91.426,91.351,23.5883]
[1645892709703,4.376,91.426,91.36,16.4218]
[1645892709904,4.376,91.426,91.361,43.02454422]
[1645892710105,4.376,91.426,91.362,22.668]
[1645892710405,1.5509441,91.427,91.362,22.668]
[1645892717829,4.371,91.426,91.362,22.668]
[1645892723636,1.5509441,91.427,91.362,22.668]
[1645892724039,4.376,91.426,91.362,22.668]
[1645892724238,10.416,91.426,91.362,22.668]
[1645892724438,16.4254,91.42,91.332,4.376]
[1645892724639,5.83529738,91.419,91.333,24.0052]
[1645892724938,4.377,91.419,91.333,24.0052]
[1645892725140,1.80050302,91.417,91.333,24.0052]
[1645892725341,16.4273,91.41,91.332,4.376]
[1645892725539,6.1130805,91.409,91.332,4.376]
[1645892726546,27.04297728,91.399,91.332,4.376]
[1645892726741,1.62563776,91.397,91.332,4.376]
[1645892726940,4.378,91.396,91.332,4.376]
[1645892728443,16.4305,91.39,91.332,4.376]
[1645892728642,1.87008494,91.389,91.332,4.376]
[1645892729442,6.05194632,91.397,91.332,4.376]
[1645892729850,16.4326,91.38,91.29,15.77]
[1645892730145,1.47923225,91.378,91.297,23.77]
[1645892730546,4.378,91.377,91.297,23.77]
[1645892730747,19.22876043,91.376,91.297,23.77]
[1645892730947,6.1051387,91.375,91.297,23.77]
[1645892731553,1.57463318,91.369,91.297,23.77]
[1645892732149,4.378,91.368,91.297,23.77]
[1645892732350,1.36322953,91.366,91.297,23.77]
[1645892732550,4.378,91.365,91.297,23.77]
[1645892732950,4.378,91.365,91.271,23.3113]
[1645892733150,65.55,91.363,91.272,22.9009]
[1645892733351,65.55,91.361,91.272,22.9009]
[1645892733551,16.4413,91.34,91.272,22.9009]
[1645892733749,23.215,91.339,91.272,22.9009]
[1645892733949,25.25714795,91.338,91.272,22.9009]
[1645892734159,1.48497915,91.337,91.24,15.77]
[1645892734352,4.381,91.336,91.249,23.8174]
[1645892734550,65.55,91.335,91.249,23.8174]
[1645892734749,65.55,91.333,91.249,23.8174]
[1645892734949,65.55,91.331,91.249,23.8174]
[1645892735150,6.19215506,91.33,91.249,23.8174]
[1645892735351,69.931,91.33,91.249,23.8174]
[1645892735551,1.42584568,91.329,91.249,23.8174]
[1645892735751,4.381,91.328,91.249,23.8174]
[1645892736452,16.4447,91.32,91.249,23.8174]
[1645892736657,20.95800657,91.319,91.249,23.8174]
[1645892736854,5.78921306,91.318,91.249,23.8174]
[1645892737053,1.7184052,91.316,91.241,24.8958]
[1645892737252,1.85006303,91.313,91.241,24.8958]
[1645892737452,4.363,91.312,91.241,24.8958]
[1645892738053,81.9961,91.31,91.241,24.8958]
[1645892738253,4.357,91.309,91.241,24.8958]
[1645892738453,6.03102766,91.309,91.241,24.8958]
[1645892739263,1.67402766,91.309,91.241,24.8958]
[1645892739454,16.447,91.3,91.222,22.764]
[1645892739654,1.768208,91.298,91.222,22.764]
[1645892739855,6.110208,91.298,91.222,22.764]
[1645892740058,1.768208,91.298,91.222,22.764]
[1645892740456,25.25714795,91.297,91.223,58.80396682]
[1645892740655,25.25714795,91.297,91.222,22.764]
[1645892740857,1.60286986,91.296,91.222,22.764]
[1645892741456,16.4498,91.29,91.222,22.764]
[1645892741656,1.58800005,91.289,91.222,22.764]
[1645892743858,1.58800005,91.289,91.223,45.36443414]
[1645892744060,25.25714795,91.297,91.223,45.36443414]
[1645892745468,25.25714795,91.297,91.23,16.4452]
[1645892745669,25.25714795,91.297,91.231,109.4]
[1645892746267,4.362,91.325,91.232,5.27157071]
[1645892746468,22.7105,91.326,91.232,5.27157071]
[1645892746469,22.7105,91.326,91.234,109.4]
[1645892746683,22.7105,91.326,91.235,2.44196698]
[1645892746884,22.7105,91.326,91.241,109.4]
[1645892747086,22.7105,91.326,91.242,2.26150814]
[1645892747284,42.71925396,91.325,91.244,109.4]
[1645892747484,42.71925396,91.325,91.246,109.4]
[1645892748484,42.71925396,91.325,91.26,16.4392]
[1645892748684,42.71925396,91.325,91.261,22.946]
[1645892754394,1.38241921,91.324,91.261,22.946]
[1645892755396,1.38241921,91.324,91.262,46.02182401]
[1645892758697,1.38241921,91.324,91.261,22.946]
[1645892759102,1.36511091,91.323,91.261,22.946]
[1645892759901,5.73011091,91.323,91.261,22.946]
[1645892760307,4.365,91.323,91.251,109.4]
[1645892760505,42.71925396,91.325,91.27,16.437]
[1645892760702,42.71925396,91.325,91.271,56.27723929]
[1645892760903,42.71925396,91.325,91.27,32.207]
[1645892761704,42.71925396,91.325,91.27,16.437]
[1645892762406,42.71925396,91.325,91.252,23.1228]
[1645892762705,24.2156,91.324,91.252,23.1228]
[1645892763606,24.2156,91.324,91.26,16.4397]
[1645892764507,24.2156,91.324,91.252,23.1228]
[1645892766110,1.49869362,91.323,91.252,23.1228]
[1645892766709,16.4433,91.32,91.252,23.1228]
[1645892766910,1.44829633,91.319,91.252,23.1228]
[1645892769012,1.44829633,91.319,91.216,23.91684723]
[1645892769210,1.44829633,91.319,91.233,23.0295]
[1645892769410,4.382,91.318,91.233,23.0295]
[1645892769812,3.16685731,91.309,91.233,23.0295]
[1645892770011,4.382,91.308,91.233,23.0295]
[1645892770213,1.45912067,91.306,91.233,23.0295]
[1645892770413,4.382,91.305,91.233,23.0295]
[1645892770612,1.45912067,91.306,91.233,23.0295]
[1645892771411,16.4468,91.3,91.233,23.0295]
[1645892773836,1.45912067,91.306,91.233,23.0295]
[1645892774236,24.4426,91.307,91.233,23.0295]
[1645892775639,24.4426,91.307,91.24,16.4435]
[1645892776940,24.4426,91.307,91.233,23.0295]
[1645892779541,4.346,91.306,91.233,23.0295]
[1645892780543,16.4468,91.3,91.233,23.0295]
[1645892780842,1.80575872,91.299,91.233,23.0295]
[1645892781944,24.4426,91.307,91.24,16.4432]
[1645892783643,1.5904929,91.306,91.24,16.4432]
[1645892785146,24.4426,91.307,91.24,16.4432]
[1645892786447,24.4426,91.307,91.241,50.13101983]
[1645892786650,24.4426,91.307,91.24,16.4432]
[1645892787450,1.76665442,91.309,91.26,16.4396]
[1645892787650,1.76665442,91.309,91.261,23.3202]
[1645892795557,1.76665442,91.309,91.24,16.443]
[1645892795758,1.76665442,91.309,91.241,23.8573]
[1645892796358,23.3333,91.308,91.241,23.8573]
[1645892796558,67.03050406,91.307,91.227,4.381]
[1645892796757,65.55,91.305,91.227,4.381]
[1645892797061,1.62985342,91.304,91.227,4.381]
[1645892797257,1.62985342,91.304,91.228,23.3176]
[1645892797656,111.02985342,91.304,91.228,23.3176]
[1645892797858,1.65165804,91.297,91.227,4.381]
[1645892798056,1.65165804,91.297,91.196,24.8675]
[1645892798258,1.54356011,91.294,91.196,24.8675]
[1645892798658,1.50806628,91.291,91.206,49.51097205]
[1645892798858,4.368,91.29,91.206,49.51097205]
[1645892799458,16.4515,91.28,91.207,23.4669]
[1645892799661,23.4662,91.279,91.207,23.4669]
[1645892800358,2.20210824,91.278,91.222,23.4669]
[1645892801759,2.20210824,91.278,91.2,16.4508]
[1645892802059,2.20210824,91.278,91.201,23.2929]
[1645892802060,3.98205548,91.278,91.201,23.2929]
[1645892803460,1.7944669,91.269,91.201,23.2929]
[1645892803663,1.7944669,91.269,91.185,24.0078]
[1645892803664,1.6611719,91.268,91.185,24.0078]
[1645892803864,1.50817939,91.266,91.185,24.0078]
[1645892804063,4.335,91.265,91.185,24.0078]
[1645892804362,1.76083696,91.262,91.185,24.0078]
[1645892804563,1.61824901,91.259,91.185,24.0078]
[1645892804766,7.27824901,91.259,91.185,24.0078]
[1645892805862,6.06046176,91.258,91.185,24.0078]
[1645892806466,24.9769,91.257,91.186,23.974]
[1645892806671,5.79077675,91.256,91.186,23.974]
[1645892807466,1.40677675,91.256,91.19,16.4523]
[1645892808768,24.9769,91.257,91.19,16.4523]
[1645892808968,24.9769,91.257,91.186,23.974]
[1645892808969,24.9769,91.257,91.2,16.4505]
[1645892809169,38.22711984,91.264,91.201,52.40928714]
[1645892809367,38.22711984,91.264,91.202,24.2686]
[1645892810570,38.22711984,91.264,91.21,16.449]
[1645892813475,38.22711984,91.264,91.22,16.446]
[1645892813674,38.22711984,91.264,91.221,53.51148478]
[1645892813876,24.2852,91.289,91.221,53.51148478]
[1645892814096,24.2852,91.289,91.222,23.7869]
[1645892814899,34.76412006,91.288,91.222,23.7869]
[1645892816596,34.76412006,91.288,91.223,47.73875257]
[1645892816797,34.76412006,91.288,91.224,4.383]
[1645892817402,34.76412006,91.288,91.231,109.4]
[1645892817596,5.79242545,91.339,91.232,4.383]
[1645892817797,5.79242545,91.339,91.24,15.77]
[1645892817997,1.41642545,91.339,91.241,113.782]
[1645892818298,21.13834856,91.355,91.241,113.782]
[1645892818299,1.68058262,91.354,91.241,113.782]
[1645892818498,34.40562873,91.318,91.243,109.4]
[1645892818699,34.40562873,91.318,91.26,16.4398]
[1645892818899,34.40562873,91.318,91.261,51.32983509]
[1645892821502,34.40562873,91.318,91.26,16.4398]
[1645892821904,34.40562873,91.318,91.241,2.74678921]
[1645892822508,34.40562873,91.318,91.244,48.01273923]
[1645892822703,34.40562873,91.318,91.245,4.382]
[1645892823304,16.4454,91.31,91.245,4.382]
[1645892823507,1.50518817,91.309,91.213,2.74678921]
[1645892823904,1.50518817,91.309,91.2,54.818]
[1645892823905,1.68157496,91.308,91.2,54.818]
[1645892824107,69.866,91.307,91.201,81.10705386]
[1645892824306,1.39902743,91.306,91.202,4.383]
[1645892824507,6.02359935,91.304,91.202,4.383]
[1645892824905,6.02359935,91.304,91.211,109.4]
[1645892825109,6.02359935,91.304,91.223,109.4]
[1645892825306,6.02359935,91.304,91.224,4.382]
[1645892825608,6.02359935,91.304,91.225,109.4]
[1645892825806,6.02359935,91.304,91.24,16.4432]
[1645892826009,22.6282,91.319,91.24,25.0432]
[1645892826206,16.4405,91.34,91.241,139.74898921]
[1645892826406,4.246,91.348,91.243,109.4]
[1645892826606,23.7711,91.349,91.245,109.4]
[1645892826807,23.7711,91.349,91.26,15.77]
[1645892827106,29.15768223,91.348,91.261,80.28445681]
[1645892827307,29.15768223,91.348,91.261,83.03124602]
[1645892827505,29.15768223,91.348,91.27,16.4377]
[1645892827709,29.15768223,91.348,91.271,4.38]
[1645892828306,29.15768223,91.348,91.272,23.0619]
[1645892828507,16.4396,91.34,91.272,23.0619]
[1645892828706,1.39647482,91.339,91.272,23.0619]
[1645892829307,4.38,91.338,91.272,23.0619]
[1645892830108,28.3557,91.338,91.272,23.0619]
[1645892830312,1.46828536,91.337,91.272,23.0619]
[1645892830511,4.375,91.336,91.272,23.0619]
[1645892831410,1.46828536,91.337,91.272,23.0619]
[1645892832011,23.9757,91.338,91.272,23.0619]
[1645892833215,1.7685926,91.337,91.272,23.0619]
[1645892835017,23.9757,91.338,91.272,23.0619]
[1645892835918,23.9757,91.338,91.272,31.3219]
[1645892836117,23.9757,91.338,91.281,52.66541511]
[1645892838720,23.9757,91.338,91.28,16.4361]
[1645892839225,23.9757,91.338,91.273,4.38]
[1645892839422,23.9757,91.338,91.272,23.0619]
[1645892842724,16.4413,91.33,91.272,23.0619]
[1645892842931,1.85958896,91.329,91.237,25.48599057]
[1645892843123,1.85958896,91.329,91.24,16.4421]
[1645892843324,4.355,91.328,91.24,16.4421]
[1645892843523,1.40262022,91.326,91.243,55.49607854]
[1645892843822,1.64199779,91.325,91.243,105.12256911]
[1645892844024,1.64199779,91.325,91.244,25.48599057]
[1645892844624,16.4432,91.32,91.244,25.48599057]
[1645892845324,1.78913199,91.319,91.243,24.1405]
[1645892846527,1.78913199,91.319,91.244,56.14428646]
[1645892847127,1.78913199,91.319,91.243,24.1405]
[1645892850733,24.9633,91.326,91.25,16.4415]
[1645892850930,24.9633,91.326,91.252,109.4]
[1645892851130,24.9633,91.326,91.252,116.44]
[1645892851531,24.9633,91.326,91.254,109.4]
[1645892852130,24.9633,91.326,91.256,109.4]
[1645892852332,24.9633,91.326,91.26,15.77]
[1645892852533,24.9633,91.326,91.27,16.4379]
[1645892852734,24.9633,91.326,91.271,49.62637204]
[1645892853133,24.9633,91.326,91.27,16.4379]
[1645892853337,24.9633,91.326,91.271,24.5913]
[1645892854735,11.27154585,91.327,91.271,24.5913]
[1645892855355,11.27154585,91.327,91.272,44.43629029]
[1645892857659,11.27154585,91.327,91.28,16.4359]
[1645892863574,11.27154585,91.327,91.272,44.43629029]
[1645892866772,11.27154585,91.327,91.271,24.5913]
[1645892867671,11.27154585,91.327,91.272,47.10309196]
[1645892874480,11.27154585,91.327,91.271,24.5913]
[1645892875681,1.61619445,91.326,91.271,24.5913]
[1645892875982,11.27154585,91.327,91.271,24.5913]
[1645892878384,1.76366434,91.349,91.28,16.436]
[1645892878581,24.0282,91.356,91.281,109.4]
[1645892878782,24.0282,91.356,91.283,109.4]
[1645892878981,24.0282,91.356,91.284,4.38]
[1645892879385,32.60166737,91.355,91.285,55.59403419]
[1645892879583,32.60166737,91.355,91.286,113.78]
[1645892879984,32.60166737,91.355,91.286,4.38]
[1645892880185,1.78061143,91.354,91.286,4.38]
[1645892880385,1.78061143,91.354,91.282,24.3349]
[1645892881286,1.78061143,91.354,91.283,52.34074546]
[1645892881486,1.78061143,91.354,91.283,56.72074546]
[1645892882487,1.78061143,91.354,91.29,16.4342]
[1645892883287,6.14861143,91.354,91.29,16.4342]
[1645892883788,1.78061143,91.354,91.29,16.4342]
[1645892888296,32.60166737,91.355,91.29,16.4342]
[1645892888697,32.60166737,91.355,91.291,4.38]
[1645892889818,32.60166737,91.355,91.3,16.4323]
[1645892890018,32.60166737,91.355,91.301,53.58002646]
[1645892890218,32.60166737,91.355,91.302,24.8246]
[1645892890618,32.60166737,91.355,91.303,4.378]
[1645892891619,32.60166737,91.355,91.31,16.4306]
[1645892898228,32.60166737,91.355,91.302,24.8246]
[1645892898626,22.5956,91.354,91.302,24.8246]
[1645892899228,1.43662675,91.353,91.302,24.8246]
[1645892899527,1.43662675,91.353,91.282,47.98639281]
[1645892899730,1.43662675,91.353,91.283,24.1057]
[1645892907937,16.4376,91.35,91.283,24.1057]
[1645892908141,1.82085889,91.349,91.283,24.1057]
[1645892908343,1.82085889,91.349,91.257,25.4835697]
[1645892908539,1.82085889,91.349,91.273,23.6919]
[1645892908741,4.362,91.348,91.273,23.6919]
[1645892909541,16.4393,91.34,91.273,23.6919]
[1645892909740,9.32971917,91.339,91.273,23.6919]
[1645892910142,9.32971917,91.339,91.26,16.4385]
[1645892910345,1.49949743,91.337,91.26,16.4385]
[1645892910542,4.348,91.336,91.26,16.4385]
[1645892911547,1.39281094,91.329,91.26,16.4385]
[1645892911744,4.343,91.328,91.26,16.4385]
[1645892912146,1.71756004,91.326,91.26,16.4385]
[1645892912353,32.60166737,91.325,91.26,16.4385]
[1645892912548,1.59084683,91.324,91.26,16.4385]
[1645892914548,1.59084683,91.324,91.26,61.16787543]
[1645892919968,1.59084683,91.324,91.26,16.4385]
[1645892924176,32.60166737,91.325,91.26,16.4385]
[1645892926882,16.4428,91.32,91.252,24.9362]
[1645892927080,1.86605588,91.319,91.252,24.9362]
[1645892927481,9.90605588,91.319,91.252,24.9362]
[1645892927882,16.4448,91.31,91.252,24.9362]
[1645892928083,81.9948,91.31,91.231,4.381]
[1645892928286,29.30408524,91.309,91.232,23.9068]
[1645892928486,1.57381301,91.308,91.232,23.9068]
[1645892928685,4.343,91.307,91.232,23.9068]
[1645892928883,7.82756071,91.306,91.233,53.41518]
[1645892929383,7.82756071,91.306,91.234,4.382]
[1645892929785,7.82756071,91.306,91.232,23.9068]
[1645892929991,7.82756071,91.306,91.233,4.382]
[1645892930583,7.82756071,91.306,91.234,52.44907198]
[1645892931287,7.82756071,91.306,91.233,4.382]
[1645892931486,16.4467,91.3,91.232,23.9068]
[1645892931886,22.8938,91.299,91.232,23.9068]
[1645892932286,22.8938,91.299,91.233,58.95046237]
[1645892932587,22.8938,91.299,91.232,23.9068]
[1645892933588,22.8938,91.299,91.233,56.92135737]
[1645892938594,24.43238925,91.299,91.233,56.92135737]
[1645892939594,22.8938,91.299,91.233,56.92135737]
[1645892939896,22.8938,91.299,91.24,16.4432]
[1645892940496,22.8938,91.299,91.241,134.8835697]
[1645892940699,22.8938,91.299,91.241,49.41319325]
[1645892940896,22.8938,91.299,91.242,49.41319325]
[1645892941300,22.8938,91.299,91.244,109.4]
[1645892941499,22.8938,91.299,91.25,16.4404]
[1645892941728,22.8938,91.299,91.251,48.99941455]
[1645892942829,1.51252664,91.338,91.26,16.4395]
[1645892943026,24.7586,91.338,91.261,133.195]
[1645892943226,24.7586,91.338,91.261,158.6785697]
[1645892943426,24.7586,91.338,91.263,109.4]
[1645892943928,31.85380833,91.337,91.263,109.4]
[1645892944331,31.85380833,91.337,91.28,16.4358]
[1645892944529,31.85380833,91.337,91.282,56.09727846]
[1645892945332,31.85380833,91.337,91.29,16.4337]
[1645892945529,31.85380833,91.337,91.282,56.09727846]
[1645892947529,31.85380833,91.337,91.281,24.7763]
[1645892947729,1.84815427,91.336,91.281,24.7763]
[1645892948832,16.4413,91.33,91.263,24.4668]
[1645892949231,1.60654984,91.329,91.263,24.4668]
[1645892949430,4.36,91.328,91.263,24.4668]
[1645892950230,22.5646,91.327,91.263,24.4668]
[1645892950432,16.4438,91.32,91.263,24.4668]
[1645892950630,10.16673469,91.319,91.263,24.4668]
[1645892951535,4.345,91.318,91.263,24.4668]
[1645892951736,8.57541975,91.319,91.263,24.4668]
[1645892951937,10.07206958,91.319,91.263,24.4668]
[1645892952737,4.33,91.318,91.263,24.4668]
[1645892953139,8.57541975,91.319,91.263,24.4668]
[1645892960754,10.09085025,91.319,91.263,24.4668]
[1645892960949,16.4448,91.31,91.233,4.381]
[1645892961151,1.53195524,91.309,91.234,23.9965]
[1645892961350,1.53195524,91.309,91.235,4.382]
[1645892961551,1.53195524,91.309,91.234,23.9965]
[1645892961750,24.0367,91.308,91.234,23.9965]
[1645892961951,1.7234716,91.307,91.234,23.9965]
[1645892962754,24.0367,91.308,91.235,4.382]
[1645892963556,8.57541975,91.319,91.241,109.4]
[1645892963757,8.57541975,91.319,91.242,4.382]
[1645892963954,8.57541975,91.319,91.243,109.4]
[1645892964157,8.57541975,91.319,91.244,4.382]
[1645892964355,8.57541975,91.319,91.244,138.6412]
[1645892964555,8.57541975,91.319,91.244,164.1247697]
[1645892964758,8.57541975,91.319,91.246,109.4]
[1645892964957,8.57541975,91.319,91.247,4.382]
[1645892965358,8.57541975,91.319,91.249,109.4]
[1645892965560,8.57541975,91.319,91.261,154.0641996]
[1645892965759,23.3423,91.333,91.261,154.0641996]
[1645892965961,5.88888978,91.369,91.263,109.4]
[1645892966159,1.50788978,91.369,91.264,4.381]
[1645892966359,1.50788978,91.369,91.265,109.4]
[1645892966559,1.50788978,91.369,91.271,109.4]
[1645892966761,35.91964528,91.338,91.28,16.4348]
[1645892966959,35.91964528,91.338,91.281,4.38]
[1645892969977,1.6075319,91.359,91.281,113.78]
[1645892970186,4.38,91.375,91.291,109.4]
[1645892970484,24.3129,91.376,91.293,109.4]
[1645892970677,24.3129,91.376,91.294,4.378]
[1645892970879,24.3129,91.376,91.295,109.4]
[1645892971086,37.08401447,91.375,91.301,109.4]
[1645892971279,37.08401447,91.375,91.32,16.4289]
[1645892972879,37.08401447,91.375,91.303,22.8411]
[1645892973781,37.08401447,91.375,91.303,22.80871378]
[1645892973982,37.08401447,91.375,91.304,113.778]
[1645892974290,37.08401447,91.375,91.304,122.148]
[1645892974483,37.08401447,91.375,91.304,12.748]
[1645892975483,37.08401447,91.375,91.31,16.4304]
[1645892976083,38.45006942,91.375,91.31,16.4304]
[1645892977785,1.57626751,91.374,91.31,16.4304]
[1645892978485,1.57626751,91.374,91.303,22.80871378]
[1645892979387,81.9838,91.37,91.272,4.378]
[1645892979588,65.55,91.366,91.273,24.6337]
[1645892979786,174.95,91.366,91.273,24.6337]
[1645892979992,174.95,91.364,91.273,24.6337]
[1645892980190,1.58164274,91.361,91.273,24.6337]
[1645892980488,16.4391,91.34,91.273,24.6337]
[1645892980691,4.9193954,91.339,91.273,24.6337]
[1645892984991,3.34521361,91.339,91.273,24.6337]
[1645892985392,3.34521361,91.339,91.28,16.4358]
[1645892989598,4.376,91.357,91.281,109.4]
[1645892989798,1.51859006,91.389,91.281,118.30678921]
[1645892989997,1.51859006,91.389,91.282,2.90705494]
[1645892990198,1.51859006,91.389,91.283,109.4]
[1645892990398,1.51859006,91.389,91.284,2.66624699]
[1645892990598,28.99123606,91.375,91.286,109.4]
[1645892990799,28.99123606,91.375,91.3,15.77]
[1645892991003,28.99123606,91.375,91.301,73.35647233]
[1645892991502,28.99123606,91.375,91.32,16.4285]
[1645892993505,24.913,91.393,91.331,109.4]
[1645892993701,24.913,91.393,91.32,7.15]
[1645892993702,24.913,91.393,91.33,15.77]
[1645892993901,24.913,91.393,91.331,109.4]
[1645892994501,1.8480704,91.418,91.333,109.4]
[1645892994702,24.6698,91.419,91.335,109.4]
[1645892994904,24.6698,91.419,91.35,16.4234]
[1645892995506,28.30184045,91.418,91.35,16.4234]
[1645892996708,28.30184045,91.418,91.341,109.4]
[1645892996907,28.30184045,91.418,91.36,60.81674085]
[1645892997808,28.30184045,91.418,91.34,32.1934]
[1645892998106,1.73607003,91.417,91.34,16.4234]
[1645892998507,1.7504104,91.415,91.34,16.4234]
[1645892998908,6.1274104,91.415,91.341,44.16825507]
[1645892999307,1.7504104,91.415,91.341,44.16825507]
[1645893000510,1.7504104,91.415,91.35,16.4234]
[1645893001512,23.5369,91.416,91.35,16.4234]
[1645893005234,23.5369,91.416,91.336,22.8652]
[1645893005436,1.70019217,91.415,91.336,22.8652]
[1645893005634,4.377,91.414,91.336,22.8652]
[1645893005834,5.76872323,91.414,91.336,22.8652]
[1645893006540,16.4266,91.41,91.336,22.8652]
[1645893006735,1.39245613,91.409,91.336,22.8652]
[1645893007336,4.375,91.408,91.31,16.4288]
[1645893007545,174.95,91.407,91.303,22.7979]
[1645893007737,1.85816567,91.398,91.303,22.7979]
[1645893007937,65.55,91.396,91.303,22.7979]
[1645893008139,65.55,91.394,91.304,49.11454572]
[1645893008344,65.55,91.392,91.304,49.11454572]
[1645893008538,12.12738763,91.389,91.304,49.11454572]
[1645893008739,12.12738763,91.389,91.303,22.7979]
[1645893008939,16.4331,91.38,91.303,22.7979]
[1645893009150,1.54397302,91.379,91.303,22.7979]
[1645893009337,23.0866,91.378,91.303,22.7979]
[1645893009539,1.86542436,91.377,91.303,22.7979]
[1645893009739,1.86542436,91.377,91.304,57.02524621]
[1645893010640,81.984,91.37,91.285,24.832]
[1645893010842,1.66774004,91.369,91.285,24.832]
[1645893011041,4.361,91.368,91.285,24.832]
[1645893011247,24.1403,91.367,91.285,24.832]
[1645893011442,6.00595545,91.366,91.285,24.832]
[1645893011646,7.61654488,91.366,91.285,24.832]
[1645893011942,6.00595545,91.366,91.285,24.832]
[1645893013449,65.55,91.365,91.274,4.378]
[1645893013644,65.55,91.365,91.273,23.4947]
[1645893013645,65.55,91.363,91.273,23.4947]
[1645893013846,174.95,91.361,91.252,4.38]
[1645893014045,1.35276594,91.36,91.252,29.0196]
[1645893014248,16.4411,91.33,91.252,29.0196]
[1645893014446,29.93211981,91.328,91.253,49.32146252]
[1645893014649,1.6041313,91.327,91.254,4.381]
[1645893015446,1.6041313,91.327,91.26,16.4382]
[1645893019452,28.30184045,91.328,91.26,16.4382]
[1645893027876,28.30184045,91.328,91.261,4.381]
[1645893029257,28.30184045,91.328,91.26,16.4382]
[1645893029456,33.79184045,91.328,91.26,16.4382]
[1645893031155,28.30184045,91.328,91.26,16.4382]
[1645893049093,28.30184045,91.328,91.253,49.32146252]